[Event "Czech Open-Rapid 2022"]
[Site "Pardubice"]
[Date "2022.07.21"]
[Round "7.8"]
[White "Jirovsky, Milos"]
[Black "Goroshkov, Maksym"]
[Result "1-0"]
[ECO "D02"]
[WhiteElo "2458"]
[BlackElo "2240"]
[Annotator "TA"]
[PlyCount "129"]
[EventDate "2022.07.20"]
[EventType "swiss"]
[EventCountry "CZE"]
[SourceTitle "playchess.com"]
[Source "ChessBase"]
[SourceQuality "1"]
[TimeControl "1200+10"]

{[%evp 16,128,54,54,57,35,37,39,38,38,46,21,31,17,19,8,27,32,31,22,23,14,21,-1,-6,-10,-16,-27,-12,-33,-5,-5,-5,-12,0,-31,3,0,-7,0,10,-25,0,0,0,0,67,50,71,54,97,110,95,101,142,138,154,154,275,277,926,926,1074,998,1095,1058,1031,721,779,750,1143,1165,1387,1323,1080,751,713,676,1088,1051,1035,1047,952,778,1690,1600,1776,1461,3146,2781,29977,29978,29981,29983,29983,29984,29983,29984,29988,29988,29989,29990,29990,29990,29992,29991,29993,29993,29996,29994,29997,29998,29998,29999,29999]} 1. d4 {[%emt 0:00:01]} Nf6 {[%emt 0:00:04]} 2. Nf3 {[%emt 0:00:06]} d5 {[%emt 0:00:18]} 3. Bf4 {[%emt 0:00:06]} c6 {[%emt 0:00:02]} 4. e3 {[%emt 0:00:02]} Bf5 {[%emt 0:00:04]} 5. c4 {[%emt 0:00:02]} e6 {[%emt 0:00:03]} 6. Qb3 {[%emt 0:00:02]} Qb6 {[%emt 0:00:37]} 7. c5 {[%emt 0:00:09]} Qxb3 {[%emt 0:00:01]} 8. axb3 {[%emt 0:00:02]} Nbd7 {[%emt 0:00:04]} 9. Nc3 {[%emt 0:00:03]} Be7 {[%emt 0:00:08] D02: 1 d4 d5 2 Nf3 sidelines, including 2...Nf6 3 g3 and 2...Nf6 3 Bf4.} 10. h3 {[%emt 0:00:04]} O-O {[%emt 0:00:02]} 11. b4 {[%emt 0:00:09]} a6 {[%emt 0:00:04] Against b5. White is slightly better.} 12. Nd2 $1 {[%emt 0:00:23] 12.Nd2 scores better than 12.Be2.} Bc2 {[%emt 0:00:24]} 13. Rc1 {[%emt 0:00:09]} Bg6 {[%emt 0:00:06]} 14. Nb3 {[%emt 0:00:02]} Bd8 {[%emt 0:00:22] [#]} 15. Be2 $146 {[%emt 0:00:07]} ({Predecessor:} 15. Ra1 Re8 16. b5 Bc2 17. bxc6 bxc6 18. Na5 Bxa5 19. Rxa5 e5 20. dxe5 Nxe5 21. Kd2 {1-0 (31) Novoa,F (2049)-Galvan,A Buenos Aires 2011}) 15... Ne4 {[%emt 0:00:06]} 16. f3 {[%emt 0:00:18]} Bh4+ {[%emt 0:00:08]} 17. Kf1 {[%emt 0:00:12]} Ng3+ {[%emt 0:00:03]} 18. Bxg3 {[%emt 0:00:10]} Bxg3 {[%emt 0:00:02]} 19. f4 {[%emt 0:00:08] [#] Prevents e5. Threatens to win with h4.} Bh4 $36 {[%emt 0:00:04][%mdl 2048] Black is pushing.} 20. Na5 {[%emt 0:00:17]} Rab8 {[%emt 0:00:08]} 21. Rd1 {[%emt 0:00:13]} Bd8 {[%emt 0:00:22]} 22. g4 {[%emt 0:00:09]} f6 {[%emt 0:00:14]} 23. Kg2 {[%emt 0:00:09]} Bc7 {[%emt 0:00:04]} 24. h4 {[%emt 0:00:12]} h6 {[%emt 0:00:10]} 25. Rhf1 {[%emt 0:00:11]} e5 {[%emt 0:00:28]} 26. f5 {[%emt 0:00:14]} Bf7 {[%emt 0:00:21]} 27. Bf3 {[%emt 0:01:48]} g6 {[%emt 0:00:52]} 28. Be2 {[%emt 0:03:31]} gxf5 {[%emt 0:00:19]} 29. gxf5 {[%emt 0:00:02]} Kh7 {[%emt 0:00:03]} 30. Kf2 {[%emt 0:00:08]} exd4 {[%emt 0:00:34]} (30... Rfe8 $11) 31. exd4 $14 {[%emt 0:00:02]} Bf4 {[%emt 0:00:18]} 32. Bf3 {[%emt 0:01:30]} Rg8 {[%emt 0:00:41] White stays focused until the end.} 33. Ne2 {[%emt 0:00:07][%cal Bc3e2,Be2g3,Bg3h5][%mdl 32] Against Bg3+} Bc7 {[%emt 0:00:07]} 34. Rg1 {[%emt 0:00:13]} Rxg1 {[%emt 0:00:30]} 35. Rxg1 {[%emt 0:00:03]} Nf8 {[%emt 0:00:57] [#]} 36. Ng3 $1 {[%emt 0:00:19] White is more active.} Bf4 {[%emt 0:00:57]} (36... Kh8 $16 37. Re1 Bxa5 38. bxa5 Re8) 37. Re1 $18 {[%emt 0:00:36]} Bd2 $2 {[%emt 0:00:43]} (37... Re8 38. Rxe8 Bxe8) 38. Re7 $1 {[%emt 0:00:06][%csl LRb7,LRf7]} Kg8 {[%emt 0:00:02]} 39. Bh5 {[%emt 0:00:33]} Bxh5 {[%emt 0:00:15]} 40. Nxh5 {[%emt 0:00:02]} Nh7 {[%emt 0:00:00]} 41. Rxb7 {[%emt 0:00:10]} Rxb7 {[%emt 0:00:28]} 42. Nxb7 {[%emt 0:00:01] Pair of Knights!} Bxb4 {[%emt 0:00:01][%mdl 4096] Endgame KBN-KNN} 43. Nd8 {[%emt 0:00:03]} Bd2 {[%emt 0:00:11]} 44. Nxc6 {[%emt 0:00:04] aiming for Ke2.} Kf7 {[%emt 0:00:03]} 45. Nd8+ {[%emt 0:00:26]} Ke7 {[%emt 0:00:08]} 46. Ne6 {[%emt 0:00:01]} a5 {[%emt 0:00:11]} 47. Nc7 {[%emt 0:00:10]} a4 {[%emt 0:00:15]} 48. Nxd5+ {[%emt 0:00:03]} Kd8 {[%emt 0:00:05]} 49. Nb6 {[%emt 0:00:05]} Kc7 {[%emt 0:00:06]} 50. Nxa4 {[%emt 0:00:03]} Kc6 {[%emt 0:00:01]} 51. Ke2 {[%emt 0:00:03]} Bc1 {[%emt 0:00:05]} 52. Kd3 {[%emt 0:00:08] Black must now prevent b4.} Kb5 {[%emt 0:00:13]} 53. Nc3+ {[%emt 0:00:02] White mates.} Kc6 {[%emt 0:00:03]} 54. b4 {[%emt 0:00:03]} Bb2 {[%emt 0:00:03]} 55. b5+ {[%emt 0:00:01]} Kd7 {[%emt 0:00:00]} 56. Ne4 {[%emt 0:00:02]} Ke7 {[%emt 0:00:05]} 57. b6 {[%emt 0:00:04]} Nf8 {[%emt 0:00:00]} 58. Nhxf6 {[%emt 0:00:03]} Kd8 {[%emt 0:00:02]} 59. Kc4 {[%emt 0:00:04]} h5 {[%emt 0:00:01]} 60. Kd5 {[%emt 0:00:07]} Kc8 {[%emt 0:00:02]} 61. c6 {[%emt 0:00:04]} Kb8 {[%emt 0:00:00]} 62. Nd7+ {[%emt 0:00:03]} Ka8 {[%emt 0:00:02]} 63. b7+ {[%emt 0:00:03]} Ka7 {[%emt 0:00:01]} 64. b8=Q+ Ka6 65. Qb6# {[%emt 0:00:05] Weighted Error Value: White=0.11 (very precise) /Black=0.45} 1-0

[Event "Czech Open-Rapid 2022"]
[Site "Pardubice"]
[Date "2022.07.21"]
[Round "7.9"]
[White "Luch, Michal"]
[Black "Strebkovs, Andrejs"]
[Result "1-0"]
[ECO "A56"]
[WhiteElo "2375"]
[BlackElo "2283"]
[Annotator "TA"]
[PlyCount "125"]
[EventDate "2022.07.20"]
[EventType "swiss"]
[EventCountry "CZE"]
[SourceTitle "playchess.com"]
[Source "ChessBase"]
[SourceQuality "1"]
[TimeControl "1200+10"]

{[%evp 17,125,66,61,29,64,54,72,51,83,89,112,112,113,113,114,104,103,109,104,74,77,72,99,50,47,43,49,49,49,25,25,25,26,20,71,68,103,104,95,101,143,143,143,138,137,140,141,106,106,106,106,106,146,122,107,107,88,97,285,285,275,280,276,276,459,276,265,260,245,245,245,0,398,365,438,409,436,436,427,414,471,416,443,427,558,460,543,481,779,777,775,770,809,716,925,883,862,875,836,745,2498,2554,2279,2258,2857,2063,1897,1741,29978,29979]} 1. d4 {[%emt 0:00:01]} Nf6 {[%emt 0:00:23]} 2. c4 {[%emt 0:00:01]} c5 {[%emt 0:00:12]} 3. d5 {[%emt 0:00:01]} g6 {[%emt 0:00:16]} 4. Nc3 {[%emt 0:00:04]} d6 {[%emt 0:00:03]} 5. e4 {[%emt 0:00:16]} Bg7 {[%emt 0:00:04]} 6. h3 {[%emt 0:00:28]} O-O {[%emt 0:00:08]} 7. Bd3 {[%emt 0:00:13]} e6 {[%emt 0:00:15]} 8. Nf3 {[%emt 0:00:06]} Na6 {[%emt 0:00:21]} 9. O-O {[%emt 0:00:09]} Nc7 {[%emt 0:01:16] 9...e5 is more fashionable.} 10. Bf4 {[%emt 0:01:19] E90: King's Indian: Classical: Early deviations and 6 h3.} e5 {[%emt 0:01:09]} 11. Be3 {[%emt 0:02:06] [#]} Rb8 $146 {[%emt 0:01:01]} ({Predecessor:} 11... Nfe8 12. Nd2 f5 13. f4 exf4 14. Bxf4 g5 15. Bh2 f4 16. Nf3 h5 17. Ne1 Bd4+ {1-0 (37) Tomaszewski,K (2322)-Wieczorek,O (2468) Katowice 2018}) 12. a3 {[%emt 0:00:31] White is better.} a6 {[%emt 0:00:57]} 13. b4 {[%emt 0:00:10]} b6 {[%emt 0:00:39]} 14. Rb1 {[%emt 0:07:01]} Bd7 {[%emt 0:00:41]} 15. Qc2 {[%emt 0:00:18]} Qe7 {[%emt 0:01:58]} 16. Rb2 {[%emt 0:04:11]} Rfc8 {[%emt 0:02:38]} 17. Rfb1 {[%emt 0:00:41] And now bxc5 would win.} Qd8 {[%emt 0:01:14]} 18. bxc5 {[%emt 0:03:05]} bxc5 {[%emt 0:00:09]} 19. Bd2 {[%emt 0:00:04]} Nce8 {[%emt 0:00:40]} 20. Na4 {[%emt 0:00:51]} ({White should try} 20. Rb3 $16) 20... Rxb2 $14 {[%emt 0:00:28]} 21. Rxb2 Rb8 {[%emt 0:00:28] Inhibits Nb6.} 22. Rxb8 {[%emt 0:01:08]} Qxb8 {[%emt 0:00:07]} 23. Qb2 {[%emt 0:00:02]} Qxb2 {[%emt 0:00:46]} 24. Nxb2 {[%emt 0:00:01]} Nh5 {[%emt 0:00:17]} 25. Bc2 {[%emt 0:01:13]} Kf8 {[%emt 0:00:37]} (25... f5 $11) 26. Na4 $36 {[%emt 0:00:11][%mdl 2048] White is more active.} Nf4 {[%emt 0:01:21]} 27. Nb6 {[%emt 0:00:08]} Ke7 {[%emt 0:00:48]} 28. Kf1 {[%emt 0:00:01]} Bf6 {[%emt 0:00:56] Inhibits Ng5.} 29. Nxd7 {[%emt 0:00:15]} Kxd7 {[%emt 0:00:03]} 30. g3 {[%emt 0:00:07]} Nh5 {[%emt 0:00:20]} (30... Nxh3 $2 31. Kg2) 31. Ba4+ {[%emt 0:00:01]} Ke7 {[%emt 0:00:44]} 32. Ba5 {[%emt 0:00:16]} Bg7 {[%emt 0:00:35]} 33. Ke2 {[%emt 0:00:18]} Nhf6 {[%emt 0:00:29]} 34. Kd3 {[%emt 0:00:02]} Nd7 {[%emt 0:00:07]} 35. Ng5 {[%emt 0:00:20][%cal Og5f7]} Nef6 {[%emt 0:00:45]} 36. Bc6 {[%emt 0:00:10] A strong pair of Bishops.} h6 {[%emt 0:00:09]} 37. Nf3 {[%emt 0:00:02] White is more active.} Ne8 $2 {[%emt 0:00:26]} (37... Nb8 $16) 38. Bb7 $18 {[%emt 0:00:23]} Nb8 {[%emt 0:00:04] [#]} 39. Bc8 {[%emt 0:00:07]} Bf8 {[%emt 0:00:34]} 40. a4 {[%emt 0:00:10]} Kf6 $2 {[%emt 0:00:40]} (40... Bg7 41. g4 Bh8) 41. Bb6 {aiming for Ba7.} Ke7 {[%emt 0:00:27]} 42. g4 {[%emt 0:00:13]} Nd7 {[%emt 0:00:08] [#]} 43. Ba5 Nb8 {[%emt 0:00:04]} 44. Bb6 $2 {[%emt 0:00:11]} (44. Ke3 $18) 44... Nf6 $2 {[%emt 0:00:17][%mdl 8192]} (44... Nd7 $11 45. Ba5 Nb8) 45. Bc7 {[%emt 0:00:08]} Nfd7 {[%emt 0:00:03]} 46. Nd2 {[%emt 0:00:06] Strongly threatening Nb3.} Ke8 {[%emt 0:00:16]} 47. Nb3 {[%emt 0:00:12] Black must now prevent Na5.} Be7 {[%emt 0:00:12]} 48. Bb7 {[%emt 0:00:03]} h5 {[%emt 0:00:24]} 49. gxh5 {[%emt 0:00:25]} gxh5 {[%emt 0:00:01]} 50. Bc8 {[%emt 0:00:16]} h4 {[%emt 0:00:23]} 51. Nd2 {[%emt 0:00:11]} Kf8 {[%emt 0:00:26]} 52. Nf1 {[%emt 0:00:01]} Kg7 {[%emt 0:00:57]} (52... Ke8 $142 53. Bb7 Bd8) 53. Ne3 {[%emt 0:00:00]} Bg5 {[%emt 0:00:19]} 54. Nf5+ {[%emt 0:00:01]} Kg6 {[%emt 0:00:05]} 55. Nxd6 {[%emt 0:00:21]} Bf6 {[%emt 0:00:18]} 56. Ke2 {[%emt 0:00:16]} Bg7 {[%emt 0:00:08]} 57. Kf3 {[%emt 0:00:14]} Bf8 {[%emt 0:00:02]} 58. Nf5 {[%emt 0:00:09]} f6 {[%emt 0:00:19]} 59. Nxh4+ {[%emt 0:00:02]} Kg5 {[%emt 0:00:05]} 60. Nf5 {[%emt 0:00:02]} Bh6 {[%emt 0:00:15]} 61. Kg3 {[%emt 0:00:04]} a5 {[%emt 0:00:04]} 62. Bxa5 {[%emt 0:00:05] Hoping for Bc7.} Nf8 {[%emt 0:00:01]} 63. Bd2+ {[%emt 0:00:04] Weighted Error Value: White=0.17 (very precise) /Black=0.53} 1-0

[Event "Czech Open-Rapid 2022"]
[Site "Pardubice"]
[Date "2022.07.21"]
[Round "7.10"]
[White "Lalic, Bogdan"]
[Black "Aradhya, Garg"]
[Result "1-0"]
[ECO "A09"]
[WhiteElo "2412"]
[BlackElo "2229"]
[Annotator "TA"]
[PlyCount "73"]
[EventDate "2022.07.20"]
[EventType "swiss"]
[EventCountry "CZE"]
[SourceTitle "playchess.com"]
[Source "ChessBase"]
[SourceQuality "1"]
[TimeControl "1200+10"]

{[%evp 10,73,15,7,37,36,49,35,54,2,29,0,22,14,29,0,0,0,29,24,50,53,100,86,85,84,106,125,119,113,172,110,97,64,152,146,150,169,187,197,202,185,202,150,319,156,185,142,139,148,351,338,345,334,426,433,588,616,593,584,1356,1306,29979,29980,5904,3028]} 1. Nf3 {[%emt 0:00:05]} d5 {[%emt 0:00:01]} 2. c4 {[%emt 0:00:06]} d4 {[%emt 0:00:06]} 3. e3 {[%emt 0:00:07]} c5 {[%emt 0:00:02]} 4. b4 {[%emt 0:00:13]} dxe3 {[%emt 0:00:03]} 5. fxe3 {[%emt 0:00:08]} cxb4 {[%emt 0:00:08]} 6. d4 {[%emt 0:00:17]} g6 {[%emt 0:00:13] A09: Réti Opening: 1 Nf3 d5 2 c4.} 7. a3 {[%emt 0:00:18]} b3 {[%emt 0:01:12]} 8. Qxb3 {[%emt 0:00:12]} Bg7 {[%emt 0:00:01] [#] White is slightly better.} 9. Nc3 $146 {[%emt 0:01:43]} (9. Bd3 $14) ({Predecessor:} 9. Be2 Nf6 10. O-O O-O 11. Bb2 b6 12. Nbd2 Bb7 13. a4 Nbd7 14. a5 e5 15. a6 {1-0 (34) Shuvalov,E (2182)-Balabayeva,K (2156) Chess.com INT 2021}) 9... Nc6 {[%emt 0:00:42]} 10. Be2 {[%emt 0:00:14]} Nh6 {[%emt 0:00:10]} 11. O-O {[%emt 0:00:13]} O-O {[%emt 0:00:03]} 12. Rd1 {[%emt 0:00:27]} b6 {[%emt 0:01:52]} 13. a4 {[%emt 0:01:48]} Ba6 {[%emt 0:03:10]} 14. Nb5 {[%emt 0:00:23]} Rc8 {[%emt 0:00:02]} 15. Bd2 {[%emt 0:00:55]} e5 {[%emt 0:03:52] [#]} (15... Nf5 $14) 16. d5 $1 $16 {[%emt 0:02:11]} Na5 {[%emt 0:02:40]} 17. Bxa5 {[%emt 0:00:06]} bxa5 {[%emt 0:00:02]} 18. Nxa7 {[%emt 0:01:21] White is much more active. The black rooks are badly placed.} e4 {[%emt 0:00:16]} 19. Nd4 {[%emt 0:00:25]} (19. Nxc8 $2 exf3 20. gxf3 Bxa1 21. Rxa1 Qg5+ 22. Kh1 Rxc8 $19) 19... Rb8 {[%emt 0:00:23] [#]} (19... Qg5 $16 {might work better.}) 20. Nab5 {[%emt 0:00:08] Pair of Knights!} ({White should try} 20. Qa3 $1 $18) 20... Qg5 {[%emt 0:01:56]} 21. Ra2 {[%emt 0:01:28]} Bb7 {[%emt 0:00:58]} (21... Be5 $1 $14) 22. Rf1 {[%emt 0:01:15]} Be5 {[%emt 0:01:49]} 23. Bd1 {[%emt 0:02:09]} (23. g3 Bxg3 24. Bd1 (24. hxg3 Qxg3+ 25. Kh1 Qh3+ 26. Kg1 Qg3+ 27. Kh1 Qh3+ 28. Kg1 Qg3+ $11) 24... Be5+ 25. Rg2 Qe7 $11) 23... Rfc8 {[%emt 0:00:01]} 24. Raf2 {[%emt 0:00:28]} (24. g3 Ba8 $16) 24... Qe7 {[%emt 0:01:21]} 25. Be2 {[%emt 0:00:47]} Kh8 {[%emt 0:01:52]} 26. g4 {[%emt 0:00:43]} Rg8 $2 {[%emt 0:00:32]} (26... Ba8 $16 {was called for.} 27. Kh1 f6) 27. Rg2 {[%emt 0:00:19]} (27. d6 $18 {is more deadly.} Qg5 28. Rg2) 27... f5 {[%emt 0:00:20]} 28. Qc3 {[%emt 0:01:58] And now d6 would win.} (28. gxf5 gxf5 29. Rff2 (29. Nxf5 $2 Nxf5 30. Rxf5 Qh4 $19) 29... Qh4 $17) 28... fxg4 {[%emt 0:00:19]} 29. d6 {[%emt 0:00:05]} ({Don't play} 29. Bxg4 $6 Nxg4 30. Rxg4 Rbf8 $14) 29... Qd7 {[%emt 0:00:34] Black cannot hold the game after this.} (29... Qg5 $16 {is a better defense.}) 30. c5 $18 {[%emt 0:00:22] aiming for c6.} ({Less strong is} 30. Qxa5 Rbf8 31. Rxf8 Rxf8 $18) 30... Rbc8 {[%emt 0:00:01] Prevents c6.} 31. Qc4 {[%emt 0:01:05] Inhibits Bd5.} Bc6 {[%emt 0:00:01]} 32. Nxc6 {[%emt 0:00:28]} Rxc6 {[%emt 0:00:18]} 33. Qd5 {[%emt 0:00:18]} Re8 {[%emt 0:00:04]} 34. Nd4 {[%emt 0:00:16]} Rcc8 {[%emt 0:00:23]} 35. Bb5 {[%emt 0:00:08]} Qa7 {[%emt 0:00:11]} 36. Bxe8 {[%emt 0:00:04]} Rxe8 {[%emt 0:00:03]} 37. d7 {Weighted Error Value: White=0.15 (very precise) /Black=0.52} 1-0

[Event "Czech Open-Rapid 2022"]
[Site "Pardubice"]
[Date "2022.07.21"]
[Round "7.11"]
[White "Tichy, Stepan"]
[Black "Vykouk, Jan"]
[Result "0-1"]
[ECO "A48"]
[WhiteElo "2207"]
[BlackElo "2476"]
[Annotator "TA"]
[PlyCount "92"]
[EventDate "2022.07.20"]
[EventType "swiss"]
[EventCountry "CZE"]
[SourceTitle "playchess.com"]
[Source "ChessBase"]
[SourceQuality "1"]
[TimeControl "1200+10"]

{[%evp 20,92,11,25,29,26,29,24,49,-43,-54,-45,-31,-70,-18,-15,-10,-170,-177,-314,-305,-306,-316,-295,-319,-327,-314,-422,-431,-422,-187,-191,-181,-417,-407,-410,-392,-396,-400,-387,-395,-390,-388,-383,-364,-572,-572,-554,-470,-572,-572,-469,-393,-662,-623,-675,-656,-5811,-2770,-29979,-29980,-29973,-12831,-6087,-5435,-29987,-29976,-29989,-29990,-29990,-29991,-29991,-29992,-29992,-29993]} 1. d4 {[%emt 0:00:03]} Nf6 {[%emt 0:00:01]} 2. Nf3 {[%emt 0:00:03]} g6 {[%emt 0:00:02]} 3. Bf4 {[%emt 0:00:14]} Bg7 {[%emt 0:00:02]} 4. c3 {[%emt 0:00:01]} O-O {[%emt 0:00:05]} 5. h3 {[%emt 0:00:04]} d6 {[%emt 0:00:03]} 6. e3 {[%emt 0:00:04]} b6 {[%emt 0:00:05]} 7. Be2 {[%emt 0:00:36]} Bb7 {[%emt 0:00:02]} 8. O-O {[%emt 0:00:03]} Nbd7 {[%emt 0:00:03]} 9. Nbd2 {[%emt 0:00:27]} c5 {[%emt 0:00:03]} 10. a4 {[%emt 0:00:11]} cxd4 {[%emt 0:00:02]} 11. exd4 {[%emt 0:00:08]} Nd5 {[%emt 0:00:03][%cal Bf6d5,Bd5f4,Bf4e2][%mdl 32] A48: 1 d4 Nf6 2 Nf3 g6: Torre, London and Colle Systems.} 12. Bg3 {[%emt 0:00:36]} Bh6 {[%emt 0:00:05] [#]} 13. Re1 $146 {[%emt 0:01:59][%cal Oa4a5]} ({Predecessor:} 13. Nh2 Bf4 14. Bxf4 Nxf4 15. Bf3 Qc7 16. Bxb7 Qxb7 17. Qf3 Qxf3 18. Nhxf3 Rac8 19. Rfe1 {½-½ (53) Kuhn,H (2335)-Chiru,I (2536) ICCF email 2007}) 13... Nf4 {[%emt 0:00:05] White has an edge.} 14. Nc4 {[%emt 0:01:15]} ({White should try} 14. Bf1 $14) 14... Nxe2+ $15 {[%emt 0:00:34]} 15. Qxe2 {[%emt 0:00:02]} Ba6 {[%emt 0:00:43] Strongly threatening ...d5. A strong pair of Bishops.} 16. d5 {[%emt 0:00:59]} ({Don't go for} 16. b3 $2 d5 17. a5 dxc4 $19) 16... Rc8 {[%emt 0:00:11]} (16... Qc8 $15 17. b3 Re8) 17. b3 $11 {[%emt 0:00:01]} Bg7 $36 {[%emt 0:00:36][%mdl 2048] And now ...Bxc4 would win. Black has the initiative.} (17... Nc5 {feels hotter.} 18. Qxe7 Qxe7 19. Rxe7 Nxb3 20. Nxd6 Nxa1 21. Nxc8 Bxc8 22. Nd4 Bg7) 18. Rac1 $2 {[%emt 0:00:30] This costs White the game.} (18. Nd4 $11 {and White stays safe.}) 18... Nc5 $19 {[%emt 0:00:11][%cal Bd7c5,Bc5b3,Bb3c1][%mdl 32]} 19. Qxe7 {[%emt 0:00:47]} (19. Qd1 $142) 19... Qxe7 {[%emt 0:00:48]} ({Not} 19... Nxb3 $2 20. Qxd8 Rfxd8 21. Nxd6 Nxc1 22. Rxc1 Rxc3 23. Re1) 20. Rxe7 {[%emt 0:00:02]} Nxb3 {[%emt 0:00:02]} 21. Nxd6 {[%emt 0:00:15]} Nxc1 {[%emt 0:00:10]} 22. Nxc8 {[%emt 0:00:02]} Rxc8 {[%emt 0:00:27]} ({Don't blunder} 22... Bxc8 $2 23. Bd6 $19) 23. d6 {[%emt 0:00:21]} Ne2+ {[%emt 0:00:15]} 24. Kh2 {[%emt 0:00:20] d7 is the strong threat.} Bf8 {[%emt 0:00:08]} (24... Nxg3 $142 25. fxg3 Rd8 26. Rxa7 Bc4) 25. Rxa7 {[%emt 0:00:23] Hoping for d7.} Nxg3 {[%emt 0:00:28]} 26. fxg3 $2 {[%emt 0:00:22]} (26. d7 {only move.} Rd8 27. Nd4) 26... Bc4 $1 {[%emt 0:00:39]} 27. d7 {[%emt 0:00:08]} Rd8 {[%emt 0:00:13]} 28. Nd4 {[%emt 0:00:07] Black must now prevent Nc6.} Be6 {[%emt 0:00:08]} 29. Nxe6 {[%emt 0:01:15]} fxe6 {[%emt 0:00:02][%mdl 4096] Endgame KRB-KR} 30. Rb7 {[%emt 0:00:01]} Kf7 {[%emt 0:00:12]} 31. Rxb6 {[%emt 0:00:38]} Rxd7 {[%emt 0:00:02]} 32. Ra6 {[%emt 0:00:01]} (32. Rb1 $142) 32... Rc7 {[%emt 0:00:06]} 33. Kg1 {[%emt 0:00:30]} Rxc3 {[%emt 0:00:02]} 34. g4 {[%emt 0:00:01]} g5 {[%emt 0:00:24]} 35. Ra8 {[%emt 0:00:36]} Rc2 {[%emt 0:00:11]} 36. g3 $2 {[%emt 0:01:46]} (36. Kf1) 36... Ra2 {[%emt 0:00:26]} 37. h4 {[%emt 0:00:35]} h6 {[%emt 0:00:02]} 38. a5 {[%emt 0:00:30]} e5 {[%emt 0:00:19][%cal Be6e5,Be5e4,Be4e3,Be3e2][%mdl 32]} 39. Ra7+ {[%emt 0:00:25]} Ke6 {[%emt 0:00:05]} 40. Ra6+ {[%emt 0:00:03]} Bd6 {[%emt 0:00:06]} (40... Kd5 $142 41. Kf1 Bd6 42. Ra8 Ke4 43. Rc8 Bb4 44. Rd8 Kf3 45. Rd3+ Kxg4 46. hxg5 hxg5 47. Re3 Rxa5 48. Ke2 Ra2+ 49. Kd1 Bd6 50. Rd3 Bc5 51. Kc1 e4 52. Rd5 {[#]} e3 $1 53. Rxc5 Ra1+ 54. Kb2 e2 55. Rc4+ Kxg3 56. Kxa1 e1=Q+ 57. Kb2 Qe5+ 58. Ka3 Qd6+ 59. Kb3 Qe6 60. Kc3 Qxc4+ $3 {[%mdl 512]} 61. Kxc4 g4 62. Kd3 Kf3 63. Kd2 g3 64. Kd3 g2 65. Kd4 g1=Q+ 66. Ke5 Qc5+ 67. Ke6 Kf4 68. Kf6 Qe5+ 69. Kf7 Kf5 70. Kg8 Kf6 71. Kh8 Kg6+ 72. Kg8 Qg7#) 41. Ra8 {[%emt 0:00:29]} e4 {[%emt 0:00:11] ( -> ...e3)} 42. Rh8 {[%emt 0:00:18]} Bxg3 {[%emt 0:00:26] Black mates.} 43. Rxh6+ {[%emt 0:00:08]} Ke5 {[%emt 0:00:03]} 44. hxg5 {[%emt 0:00:16]} e3 {[%emt 0:00:05]} 45. Rh8 {[%emt 0:00:04]} e2 {[%emt 0:01:15][%cal Re2e1]} 46. Re8+ {[%emt 0:00:18]} Kf4 {[%emt 0:00:02] Weighted Error Value: White=1.04/Black=0.13 (very precise)} 0-1